[Event "*** Titled Tuesday Blitz"]
[Site "Chess.com"]
[Date "2020.11.24"]
[Round "7"]
[White "OK97"]
[Black "azikom"]
[Result "1/2-1/2"]
[WhiteElo "2781"]
[BlackElo "2610"]
[TimeControl "180+1"]
[EndTime "11:35:37 PST"]
[Termination "Game drawn by agreement"]

1. d4 {[%clk 0:03:00.9]} 1... d5 {[%clk 0:03:00.1]} 2. c4 {[%clk 0:03:00.6]}
2... c6 {[%clk 0:03:00.1]} 3. Nf3 {[%clk 0:03:00.8]} 3... Nf6 {[%clk 0:03:00.6]}
4. Qb3 {[%clk 0:03:01.5]} 4... e6 {[%clk 0:02:59.9]} 5. Bg5 {[%clk 0:02:57.4]}
5... Nbd7 {[%clk 0:02:57.1]} 6. Nc3 {[%clk 0:02:52.1]} 6... h6 {[%clk
0:02:56.9]} 7. Bh4 {[%clk 0:02:51.9]} 7... Be7 {[%clk 0:02:57]} 8. e3 {[%clk
0:02:52.1]} 8... O-O {[%clk 0:02:57.6]} 9. Rd1 {[%clk 0:02:51.8]} 9... b6 {[%clk
0:02:55.3]} 10. Be2 {[%clk 0:02:30]} 10... Bb7 {[%clk 0:02:54.8]} 11. O-O {[%clk
0:02:29.9]} 11... c5 {[%clk 0:02:51.3]} 12. Bxf6 {[%clk 0:02:14.5]} 12... Nxf6
{[%clk 0:02:43.9]} 13. dxc5 {[%clk 0:02:07.8]} 13... Bxc5 {[%clk 0:02:42]} 14.
cxd5 {[%clk 0:02:07.1]} 14... exd5 {[%clk 0:02:25.1]} 15. Nd4 {[%clk 0:02:06.4]}
15... Qe7 {[%clk 0:02:14.6]} 16. Bf3 {[%clk 0:02:06.5]} 16... Rfd8 {[%clk
0:02:12.2]} 17. a3 {[%clk 0:01:35.4]} 17... g6 {[%clk 0:02:11.3]} 18. Qa2 {[%clk
0:01:29]} 18... Kg7 {[%clk 0:02:09.8]} 19. g3 {[%clk 0:01:23.3]} 19... Rac8
{[%clk 0:02:07.8]} 20. Rfe1 {[%clk 0:01:19.4]} 20... Ne4 {[%clk 0:01:59.8]} 21.
Nce2 {[%clk 0:01:07.6]} 21... Qf6 {[%clk 0:01:52.3]} 22. Nf4 {[%clk 0:01:04.8]}
22... Kh7 {[%clk 0:01:48.1]} 23. Qb1 {[%clk 0:00:39.1]} 23... Kh8 {[%clk
0:01:37.4]} 24. Kg2 {[%clk 0:00:31.9]} 24... a6 {[%clk 0:01:16.7]} 25. Nxd5
{[%clk 0:00:21.2]} 25... Rxd5 {[%clk 0:00:37.5]} 26. Bxe4 {[%clk 0:00:21.4]}
26... Bxd4 {[%clk 0:00:35.2]} 27. exd4 {[%clk 0:00:19.4]} 27... Rcd8 {[%clk
0:00:25]} 28. Kg1 {[%clk 0:00:17.4]} 28... R5d7 {[%clk 0:00:23.1]} 29. Bxb7
{[%clk 0:00:17.3]} 29... Rxb7 {[%clk 0:00:23.2]} 30. d5 {[%clk 0:00:17.9]} 30...
Rbd7 {[%clk 0:00:21.8]} 31. Qa2 {[%clk 0:00:17.7]} 31... Kg7 {[%clk 0:00:19]}
32. Re3 {[%clk 0:00:15]} 32... b5 {[%clk 0:00:18.5]} 33. Red3 {[%clk 0:00:15.2]}
33... Rd6 {[%clk 0:00:18.8]} 34. Qb3 {[%clk 0:00:15.5]} 34... Re8 {[%clk
0:00:18.4]} 35. Kg2 {[%clk 0:00:15.9]} 35... Re2 {[%clk 0:00:16.6]} 36. Rf3
{[%clk 0:00:13.6]} 36... Qxb2 {[%clk 0:00:16.4]} 37. Qd3 {[%clk 0:00:11.3]}
37... Qe5 {[%clk 0:00:15.6]} 38. h4 {[%clk 0:00:09.7]} 38... Qe4 {[%clk
0:00:15.6]} 39. Qxe4 {[%clk 0:00:09.7]} 39... Rxe4 {[%clk 0:00:15.5]} 40. Rc3
{[%clk 0:00:10.3]} 40... Re5 {[%clk 0:00:14.3]} 41. Rc6 {[%clk 0:00:09.2]} 41...
Rxc6 {[%clk 0:00:14.5]} 42. dxc6 {[%clk 0:00:09.8]} 42... Rc5 {[%clk 0:00:15.1]}
43. Rd6 {[%clk 0:00:09.9]} 43... a5 {[%clk 0:00:15.3]} 44. Kf1 {[%clk
0:00:04.6]} 44... b4 {[%clk 0:00:15]} 45. axb4 {[%clk 0:00:04.6]} 45... axb4
{[%clk 0:00:15.3]} 46. Rd4 {[%clk 0:00:04.9]} 46... b3 {[%clk 0:00:15.7]} 47.
Rb4 {[%clk 0:00:05]} 47... Rxc6 {[%clk 0:00:15.9]} 48. Rxb3 {[%clk 0:00:05.6]}
48... h5 {[%clk 0:00:15.9]} 49. Re3 {[%clk 0:00:06.1]} 49... Rc5 {[%clk
0:00:15.6]} 50. Kg2 {[%clk 0:00:06.6]} 1/2-1/2

[Event "*** Titled Tuesday Blitz"]
[Site "Chess.com"]
[Date "2020.11.24"]
[Round "7"]
[White "dpopadic"]
[Black "beautroll"]
[Result "0-1"]
[WhiteElo "2331"]
[BlackElo "2421"]
[TimeControl "180+1"]
[EndTime "11:35:37 PST"]
[Termination "beautroll won by resignation"]

1. e4 {[%clk 0:03:00.9]} 1... c5 {[%clk 0:02:59.9]} 2. Nc3 {[%clk 0:02:59.4]}
2... d6 {[%clk 0:02:59.9]} 3. f4 {[%clk 0:02:58.6]} 3... Nf6 {[%clk 0:02:59.2]}
4. Nf3 {[%clk 0:02:59]} 4... g6 {[%clk 0:02:50.9]} 5. Bb5+ {[%clk 0:02:58.7]}
5... Bd7 {[%clk 0:02:44.1]} 6. Bxd7+ {[%clk 0:02:57.5]} 6... Qxd7 {[%clk
0:02:45]} 7. d3 {[%clk 0:02:58.1]} 7... Bg7 {[%clk 0:02:44.8]} 8. O-O {[%clk
0:02:58.5]} 8... O-O {[%clk 0:02:43.4]} 9. Qe1 {[%clk 0:02:59]} 9... Nc6 {[%clk
0:02:42.8]} 10. Qh4 {[%clk 0:02:58.6]} 10... Nb4 {[%clk 0:02:26.2]} 11. Rf2
{[%clk 0:02:56.8]} 11... Ng4 {[%clk 0:02:17.2]} 12. Re2 {[%clk 0:02:48.8]} 12...
f5 {[%clk 0:01:52.2]} 13. exf5 {[%clk 0:02:42.6]} 13... Qxf5 {[%clk 0:01:53.1]}
14. a3 {[%clk 0:02:24.1]} 14... Nc6 {[%clk 0:01:51.8]} 15. Bd2 {[%clk
0:02:18.1]} 15... Bf6 {[%clk 0:01:44.3]} 16. Qe1 {[%clk 0:02:08.7]} 16... Nd4
{[%clk 0:01:40.6]} 17. Nxd4 {[%clk 0:02:07.8]} 17... Bxd4+ {[%clk 0:01:41.5]}
18. Kh1 {[%clk 0:02:07.2]} 18... Qh5 {[%clk 0:01:37.3]} 19. h3 {[%clk 0:02:02]}
19... e5 {[%clk 0:01:32.9]} 20. Ne4 {[%clk 0:01:54.8]} 20... exf4 {[%clk
0:01:28.8]} 21. c3 {[%clk 0:01:49.6]} 21... Be5 {[%clk 0:01:22.9]} 22. Qf1
{[%clk 0:01:25.4]} 22... Nh2 {[%clk 0:01:01.9]} 23. Qd1 {[%clk 0:01:03.7]} 23...
f3 {[%clk 0:01:00.2]} 24. Rf2 {[%clk 0:00:50.5]} 24... d5 {[%clk 0:00:58.5]} 25.
d4 {[%clk 0:00:44.1]} 25... cxd4 {[%clk 0:00:53.1]} 26. cxd4 {[%clk 0:00:39.6]}
26... Bb8 {[%clk 0:00:39.7]} 27. Ng5 {[%clk 0:00:30.7]} 27... Qh4 {[%clk
0:00:34.6]} 28. g3 {[%clk 0:00:23.2]} 28... Qxg3 {[%clk 0:00:31.5]} 29. Qg1
{[%clk 0:00:18.2]} 29... Qd6 {[%clk 0:00:24.8]} 30. Rxh2 {[%clk 0:00:15.3]}
30... Qxh2+ {[%clk 0:00:24.2]} 31. Qxh2 {[%clk 0:00:14.8]} 31... Bxh2 {[%clk
0:00:25.1]} 32. Kxh2 {[%clk 0:00:14.7]} 32... Rae8 {[%clk 0:00:24.2]} 33. Kg3
{[%clk 0:00:09.4]} 33... Re2 {[%clk 0:00:20.4]} 34. Nxf3 {[%clk 0:00:09.3]}
34... Rxf3+ {[%clk 0:00:20.2]} 35. Kxf3 {[%clk 0:00:09.2]} 35... Rxd2 {[%clk
0:00:21.1]} 36. Ke3 {[%clk 0:00:08.6]} 36... Rxb2 {[%clk 0:00:20.9]} 37. Rc1
{[%clk 0:00:08.9]} 37... Rb3+ {[%clk 0:00:21]} 38. Kf4 {[%clk 0:00:09.2]} 38...
Rxa3 {[%clk 0:00:21.3]} 39. Rc7 {[%clk 0:00:08.4]} 39... b5 {[%clk 0:00:20.5]}
40. h4 {[%clk 0:00:06.4]} 40... b4 {[%clk 0:00:20.4]} 41. Kg5 {[%clk 0:00:06.4]}
41... b3 {[%clk 0:00:19.3]} 42. Rb7 {[%clk 0:00:06.2]} 42... Kf8 {[%clk
0:00:11.1]} 43. Kf6 {[%clk 0:00:06.2]} 43... Ra6+ {[%clk 0:00:11]} 44. Ke5
{[%clk 0:00:05.5]} 44... Rb6 {[%clk 0:00:11.4]} 45. Rxa7 {[%clk 0:00:01.8]}
45... b2 {[%clk 0:00:11.4]} 46. Ra8+ {[%clk 0:00:02.5]} 46... Kg7 {[%clk
0:00:11.4]} 47. Ra7+ {[%clk 0:00:03.2]} 47... Kh6 {[%clk 0:00:11]} 0-1

[Event "*** Titled Tuesday Blitz"]
[Site "Chess.com"]
[Date "2020.11.24"]
[Round "7"]
[White "manipun1"]
[Black "profofchess"]
[Result "1-0"]
[WhiteElo "2257"]
[BlackElo "2379"]
[TimeControl "180+1"]
[EndTime "11:35:40 PST"]
[Termination "manipun1 won by resignation"]

1. e4 {[%clk 0:02:58.4]} 1... e6 {[%clk 0:03:00.3]} 2. Nf3 {[%clk 0:02:57.6]}
2... d5 {[%clk 0:03:00.4]} 3. Nc3 {[%clk 0:02:58.4]} 3... Nf6 {[%clk 0:02:59.8]}
4. e5 {[%clk 0:02:58.4]} 4... Nfd7 {[%clk 0:03:00.2]} 5. d4 {[%clk 0:02:59.3]}
5... c5 {[%clk 0:03:00.6]} 6. dxc5 {[%clk 0:03:00.2]} 6... Nc6 {[%clk
0:03:00.9]} 7. Bf4 {[%clk 0:02:58.8]} 7... Be7 {[%clk 0:02:59.2]} 8. Bd3 {[%clk
0:02:57.6]} 8... Nxc5 {[%clk 0:02:57.1]} 9. O-O {[%clk 0:02:56.6]} 9... f5
{[%clk 0:02:56]} 10. exf6 {[%clk 0:02:55.4]} 10... Bxf6 {[%clk 0:02:55.8]} 11.
Qe2 {[%clk 0:02:52.3]} 11... O-O {[%clk 0:02:50.6]} 12. Bg3 {[%clk 0:02:50.3]}
12... Kh8 {[%clk 0:02:12.5]} 13. Rfe1 {[%clk 0:02:45.8]} 13... Nxd3 {[%clk
0:01:36.5]} 14. cxd3 {[%clk 0:02:44.2]} 14... Nd4 {[%clk 0:01:30.3]} 15. Nxd4
{[%clk 0:02:43.6]} 15... Bxd4 {[%clk 0:01:31.2]} 16. Qh5 {[%clk 0:02:32.8]}
16... Qf6 {[%clk 0:01:20.7]} 17. Re2 {[%clk 0:02:32.2]} 17... Bd7 {[%clk
0:01:19.1]} 18. Rf1 {[%clk 0:02:27.6]} 18... g6 {[%clk 0:01:00.7]} 19. Qh6
{[%clk 0:02:13.1]} 19... b5 {[%clk 0:00:49.6]} 20. Nd1 {[%clk 0:02:02.3]} 20...
e5 {[%clk 0:00:34.7]} 21. Ne3 {[%clk 0:01:55.1]} 21... Be6 {[%clk 0:00:34.7]}
22. b3 {[%clk 0:01:50.1]} 22... Rac8 {[%clk 0:00:28.1]} 23. Bh4 {[%clk
0:01:49.2]} 23... Qg7 {[%clk 0:00:27.8]} 24. Qg5 {[%clk 0:01:44.8]} 24... h6
{[%clk 0:00:23.6]} 25. Qe7 {[%clk 0:01:41.3]} 25... Qxe7 {[%clk 0:00:15]} 26.
Bxe7 {[%clk 0:01:40.1]} 26... Rf7 {[%clk 0:00:12.7]} 27. Bb4 {[%clk 0:01:37.7]}
27... Rfc7 {[%clk 0:00:07.7]} 28. h3 {[%clk 0:01:36.1]} 28... Rc1 {[%clk
0:00:07.7]} 29. g4 {[%clk 0:01:32.1]} 29... Rxf1+ {[%clk 0:00:07.5]} 30. Kxf1
{[%clk 0:01:31.6]} 30... Rc1+ {[%clk 0:00:08.1]} 31. Kg2 {[%clk 0:01:31.4]}
31... Kg7 {[%clk 0:00:08]} 32. Nc2 {[%clk 0:01:26.2]} 32... Bc8 {[%clk
0:00:07.4]} 33. Nxd4 {[%clk 0:01:25.3]} 33... exd4 {[%clk 0:00:08.3]} 34. Bd6
{[%clk 0:01:21.4]} 34... h5 {[%clk 0:00:08.2]} 35. Be5+ {[%clk 0:01:21]} 35...
Kf7 {[%clk 0:00:08.7]} 36. gxh5 {[%clk 0:01:20]} 36... gxh5 {[%clk 0:00:08.7]}
37. Bxd4 {[%clk 0:01:20.9]} 37... Bf5 {[%clk 0:00:08.8]} 38. Bxa7 {[%clk
0:01:15.1]} 38... Bxd3 {[%clk 0:00:09]} 39. Rd2 {[%clk 0:01:15.8]} 39... Bf1+
{[%clk 0:00:07.8]} 40. Kg3 {[%clk 0:01:14]} 40... Rc3+ {[%clk 0:00:07]} 41. Kf4
{[%clk 0:01:11.1]} 41... Bxh3 {[%clk 0:00:05.2]} 42. Rxd5 {[%clk 0:01:09.4]}
42... Bg4 {[%clk 0:00:04]} 43. Rxb5 {[%clk 0:01:07.1]} 43... Rf3+ {[%clk
0:00:04.1]} 44. Kg5 {[%clk 0:01:06.6]} 44... Rd3 {[%clk 0:00:02.8]} 45. Be3
{[%clk 0:01:05.1]} 45... Rd1 {[%clk 0:00:02.7]} 46. Rb7+ {[%clk 0:01:01.4]}
46... Ke6 {[%clk 0:00:02.3]} 47. Rb6+ {[%clk 0:01:01]} 47... Kd5 {[%clk
0:00:02.5]} 48. a4 {[%clk 0:01:00.3]} 48... Ke4 {[%clk 0:00:02.9]} 49. a5 {[%clk
0:00:59.3]} 49... Rd5+ {[%clk 0:00:02.3]} 50. Kh4 {[%clk 0:00:58.2]} 50... Rxa5
{[%clk 0:00:03.2]} 51. b4 {[%clk 0:00:56.5]} 51... Ra1 {[%clk 0:00:04.1]} 52.
Rh6 {[%clk 0:00:54.6]} 52... Kf3 {[%clk 0:00:04.4]} 53. b5 {[%clk 0:00:51.1]}
53... Rh1+ {[%clk 0:00:04]} 54. Kg5 {[%clk 0:00:50.7]} 54... Rb1 {[%clk
0:00:04.4]} 55. b6 {[%clk 0:00:49.9]} 55... Rb5+ {[%clk 0:00:04.9]} 56. Kf6
{[%clk 0:00:47.4]} 56... Kg2 {[%clk 0:00:04.7]} 57. Ke7 {[%clk 0:00:46.2]} 57...
Kh3 {[%clk 0:00:04.9]} 58. Kd8 {[%clk 0:00:44.1]} 58... h4 {[%clk 0:00:05.3]}
59. Kc7 {[%clk 0:00:43.8]} 59... Bf3 {[%clk 0:00:05.8]} 60. Bd4 {[%clk
0:00:36.8]} 60... Bh5 {[%clk 0:00:05.8]} 61. b7 {[%clk 0:00:35.2]} 61... Kg2
{[%clk 0:00:05.8]} 62. Rxh5 {[%clk 0:00:33.6]} 62... Rxh5 {[%clk 0:00:05]} 63.
b8=Q {[%clk 0:00:33.6]} 63... Rh7+ {[%clk 0:00:05]} 64. Kd6 {[%clk 0:00:33.3]}
64... h3 {[%clk 0:00:05.4]} 65. Qg8+ {[%clk 0:00:32.7]} 1-0

[Event "*** Titled Tuesday Blitz"]
[Site "Chess.com"]
[Date "2020.11.24"]
[Round "7"]
[White "ChessQueen"]
[Black "Squirlolz"]
[Result "1/2-1/2"]
[WhiteElo "2732"]
[BlackElo "2565"]
[TimeControl "180+1"]
[EndTime "11:35:41 PST"]
[Termination "Game drawn by repetition"]

1. e4 {[%clk 0:03:00.9]} 1... e6 {[%clk 0:02:59.3]} 2. d4 {[%clk 0:03:00.5]}
2... d5 {[%clk 0:02:59.9]} 3. Nc3 {[%clk 0:03:00.6]} 3... Nf6 {[%clk 0:03:00]}
4. Bg5 {[%clk 0:02:58.8]} 4... Be7 {[%clk 0:02:57.1]} 5. e5 {[%clk 0:02:58.6]}
5... Nfd7 {[%clk 0:02:57.3]} 6. h4 {[%clk 0:02:58.9]} 6... h6 {[%clk 0:02:57.6]}
7. Bxe7 {[%clk 0:02:57.3]} 7... Qxe7 {[%clk 0:02:58.5]} 8. Qg4 {[%clk
0:02:57.1]} 8... O-O {[%clk 0:02:52.8]} 9. f4 {[%clk 0:02:37]} 9... c5 {[%clk
0:02:44.4]} 10. Nf3 {[%clk 0:02:35.2]} 10... Nc6 {[%clk 0:02:43.3]} 11. O-O-O
{[%clk 0:02:33.6]} 11... f5 {[%clk 0:02:40.5]} 12. Qh3 {[%clk 0:02:25.2]} 12...
cxd4 {[%clk 0:02:29.4]} 13. Nxd4 {[%clk 0:02:25]} 13... Nc5 {[%clk 0:02:27.1]}
14. g4 {[%clk 0:01:53.5]} 14... fxg4 {[%clk 0:02:20.8]} 15. Qxg4 {[%clk
0:01:53.5]} 15... Nxd4 {[%clk 0:02:13.7]} 16. Rxd4 {[%clk 0:01:52]} 16... Kh8
{[%clk 0:02:08]} 17. Rg1 {[%clk 0:01:43.8]} 17... Bd7 {[%clk 0:02:04.4]} 18. Bd3
{[%clk 0:01:19.9]} 18... Nxd3+ {[%clk 0:01:46.6]} 19. Rxd3 {[%clk 0:01:08.1]}
19... Rf5 {[%clk 0:01:46.1]} 20. Rdg3 {[%clk 0:01:05.6]} 20... Rg8 {[%clk
0:01:45.3]} 21. Ne2 {[%clk 0:01:01]} 21... Qf8 {[%clk 0:01:29.2]} 22. Rf3 {[%clk
0:00:46.4]} 22... Be8 {[%clk 0:01:23.5]} 23. Qg3 {[%clk 0:00:46.8]} 23... Bh5
{[%clk 0:01:21.8]} 24. Nd4 {[%clk 0:00:45.9]} 24... Bxf3 {[%clk 0:01:19.1]} 25.
Nxf5 {[%clk 0:00:46.2]} 25... Qxf5 {[%clk 0:01:17.2]} 26. Qxf3 {[%clk
0:00:46.6]} 26... Rf8 {[%clk 0:01:02.8]} 27. Rg4 {[%clk 0:00:43.2]} 27... Qxe5
{[%clk 0:00:57.2]} 28. Qg3 {[%clk 0:00:34]} 28... Qf6 {[%clk 0:00:41.2]} 29. Qe3
{[%clk 0:00:04.6]} 29... Qf5 {[%clk 0:00:30.5]} 30. Qg3 {[%clk 0:00:02.9]} 30...
Rf7 {[%clk 0:00:26.8]} 31. b3 {[%clk 0:00:02.8]} 31... Qf6 {[%clk 0:00:15.5]}
32. Kb1 {[%clk 0:00:03.2]} 32... Kg8 {[%clk 0:00:14.8]} 33. h5 {[%clk
0:00:03.6]} 33... Qf5 {[%clk 0:00:13.9]} 34. Rg6 {[%clk 0:00:03.9]} 34... Qxf4
{[%clk 0:00:07]} 35. Rxg7+ {[%clk 0:00:04.4]} 35... Kf8 {[%clk 0:00:05.3]} 36.
Rg8+ {[%clk 0:00:05]} 36... Ke7 {[%clk 0:00:05.6]} 37. Qc3 {[%clk 0:00:05.6]}
37... Qf1+ {[%clk 0:00:03.7]} 38. Kb2 {[%clk 0:00:06.2]} 38... Qf6 {[%clk
0:00:04.6]} 39. Rg6 {[%clk 0:00:06.1]} 39... Qxc3+ {[%clk 0:00:04.7]} 40. Kxc3
{[%clk 0:00:07]} 40... Rh7 {[%clk 0:00:04]} 41. Kd4 {[%clk 0:00:07.1]} 41... Kd6
{[%clk 0:00:04.3]} 42. c4 {[%clk 0:00:07.8]} 42... dxc4 {[%clk 0:00:04.3]} 43.
bxc4 {[%clk 0:00:08.7]} 43... b6 {[%clk 0:00:04.6]} 44. a4 {[%clk 0:00:09.2]}
44... Rh8 {[%clk 0:00:03.2]} 45. Rf6 {[%clk 0:00:08.6]} 45... Rh7 {[%clk
0:00:02.9]} 46. Rg6 {[%clk 0:00:08.9]} 46... a6 {[%clk 0:00:03.4]} 47. Rf6
{[%clk 0:00:08.9]} 47... Rh8 {[%clk 0:00:01.3]} 48. Rg6 {[%clk 0:00:09.3]} 48...
Rh7 {[%clk 0:00:02]} 49. Rf6 {[%clk 0:00:07.6]} 49... Rh8 {[%clk 0:00:02.6]} 50.
Rf7 {[%clk 0:00:07.7]} 50... Rg8 {[%clk 0:00:02.8]} 51. Rf6 {[%clk 0:00:07.3]}
51... Rg4+ {[%clk 0:00:02.9]} 52. Kd3 {[%clk 0:00:06.6]} 52... Rg3+ {[%clk
0:00:03.1]} 53. Kd4 {[%clk 0:00:07.2]} 53... Rg4+ {[%clk 0:00:03.5]} 54. Kd3
{[%clk 0:00:07.4]} 54... Rg3+ {[%clk 0:00:04.1]} 55. Kd4 {[%clk 0:00:07.4]}
55... Rg4+ {[%clk 0:00:04.5]} 1/2-1/2

[Event "*** Titled Tuesday Blitz"]
[Site "Chess.com"]
[Date "2020.11.24"]
[Round "7"]
[White "Jungle_Jaguar"]
[Black "maxip32"]
[Result "0-1"]
[WhiteElo "2603"]
[BlackElo "2490"]
[TimeControl "180+1"]
[EndTime "11:35:45 PST"]
[Termination "maxip32 won on time"]

1. e4 {[%clk 0:03:00.9]} 1... e5 {[%clk 0:02:59.8]} 2. Nf3 {[%clk 0:03:01]} 2...
Nf6 {[%clk 0:02:59.5]} 3. Nxe5 {[%clk 0:03:01]} 3... d6 {[%clk 0:02:59.9]} 4.
Nf3 {[%clk 0:03:01]} 4... Nxe4 {[%clk 0:03:00.5]} 5. Nc3 {[%clk 0:03:01.6]} 5...
Nxc3 {[%clk 0:02:58.2]} 6. dxc3 {[%clk 0:03:02.5]} 6... Be7 {[%clk 0:02:56.9]}
7. Bf4 {[%clk 0:03:03.1]} 7... Nc6 {[%clk 0:02:57.2]} 8. Qd2 {[%clk 0:03:03.2]}
8... Be6 {[%clk 0:02:57.9]} 9. O-O-O {[%clk 0:03:03.2]} 9... O-O {[%clk
0:02:44.4]} 10. Kb1 {[%clk 0:03:00.3]} 10... Qd7 {[%clk 0:02:42.9]} 11. Bd3
{[%clk 0:02:21.6]} 11... Bg4 {[%clk 0:02:34.9]} 12. h3 {[%clk 0:02:18.4]} 12...
Bf5 {[%clk 0:02:15.7]} 13. g4 {[%clk 0:02:03.5]} 13... Bxd3 {[%clk 0:02:15.6]}
14. Qxd3 {[%clk 0:02:04.4]} 14... Rae8 {[%clk 0:02:11.7]} 15. g5 {[%clk
0:01:56.2]} 15... Bd8 {[%clk 0:01:58.9]} 16. h4 {[%clk 0:01:56]} 16... Qg4
{[%clk 0:01:56.1]} 17. Bc1 {[%clk 0:01:46.8]} 17... Qe4 {[%clk 0:01:55.3]} 18.
h5 {[%clk 0:01:29]} 18... Qxd3 {[%clk 0:01:53.7]} 19. Rxd3 {[%clk 0:01:29.9]}
19... Ne5 {[%clk 0:01:53.5]} 20. Nxe5 {[%clk 0:01:28.4]} 20... Rxe5 {[%clk
0:01:54.4]} 21. f4 {[%clk 0:01:29]} 21... Re2 {[%clk 0:01:54.4]} 22. h6 {[%clk
0:01:26.6]} 22... g6 {[%clk 0:01:53.9]} 23. b3 {[%clk 0:01:20.9]} 23... Rfe8
{[%clk 0:01:53.5]} 24. Rhh3 {[%clk 0:01:18.9]} 24... Rg2 {[%clk 0:01:30.4]} 25.
Rhe3 {[%clk 0:01:17.6]} 25... Rxe3 {[%clk 0:01:22.1]} 26. Rxe3 {[%clk
0:01:18.5]} 26... Kf8 {[%clk 0:01:22.3]} 27. c4 {[%clk 0:01:16.3]} 27... f6
{[%clk 0:01:22]} 28. gxf6 {[%clk 0:00:41.9]} 28... Bxf6 {[%clk 0:01:22.9]} 29.
Re1 {[%clk 0:00:27.6]} 29... Rh2 {[%clk 0:01:18.9]} 30. Be3 {[%clk 0:00:22]}
30... a6 {[%clk 0:01:15.1]} 31. f5 {[%clk 0:00:18.6]} 31... gxf5 {[%clk
0:01:14.4]} 32. Rf1 {[%clk 0:00:18.5]} 32... Kf7 {[%clk 0:01:08.2]} 33. a4
{[%clk 0:00:15.3]} 33... Ke6 {[%clk 0:01:07.1]} 34. b4 {[%clk 0:00:15.4]} 34...
Rh4 {[%clk 0:01:04.6]} 35. Bf4 {[%clk 0:00:08.6]} 35... Be5 {[%clk 0:01:01.2]}
36. Bd2 {[%clk 0:00:07.8]} 36... Rxc4 {[%clk 0:00:59.7]} 37. Rg1 {[%clk
0:00:08.5]} 37... Rg4 {[%clk 0:00:59.5]} 38. Re1 {[%clk 0:00:06.7]} 38... f4
{[%clk 0:00:58.4]} 39. b5 {[%clk 0:00:03.6]} 39... axb5 {[%clk 0:00:58]} 40.
axb5 {[%clk 0:00:04.3]} 40... b6 {[%clk 0:00:57.7]} 41. Ka2 {[%clk 0:00:04.8]}
41... Kf5 {[%clk 0:00:57.2]} 42. Kb3 {[%clk 0:00:05.1]} 42... f3 {[%clk
0:00:57.1]} 43. Rf1 {[%clk 0:00:04.8]} 43... Rg3 {[%clk 0:00:56.1]} 44. Kc4
{[%clk 0:00:04.8]} 44... Bf4 {[%clk 0:00:50.8]} 45. Be1 {[%clk 0:00:04.3]} 45...
Rh3 {[%clk 0:00:50.7]} 46. Kd5 {[%clk 0:00:04.4]} 46... Kg4 {[%clk 0:00:29.5]}
47. c4 {[%clk 0:00:03.9]} 47... Bg3 {[%clk 0:00:28.9]} 48. Bc3 {[%clk
0:00:03.4]} 48... Rh5+ {[%clk 0:00:27.2]} 49. Ke6 {[%clk 0:00:01.9]} 49... Rc5
{[%clk 0:00:24.5]} 50. Kf7 {[%clk 0:00:02.4]} 50... Bf4 {[%clk 0:00:19.3]} 51.
Kg7 {[%clk 0:00:02.3]} 51... Rh5 {[%clk 0:00:19.2]} 52. Kxh7 {[%clk 0:00:01]}
52... Rxh6+ {[%clk 0:00:19.1]} 53. Kg7 {[%clk 0:00:01.9]} 53... Rh5 {[%clk
0:00:19]} 54. Bd4 {[%clk 0:00:01.3]} 54... Bg3 {[%clk 0:00:17.4]} 55. Kf7 {[%clk
0:00:01.7]} 55... Rh4 {[%clk 0:00:15.7]} 56. Ke6 {[%clk 0:00:01.9]} 56... Kh3
{[%clk 0:00:15.9]} 57. Be3 {[%clk 0:00:01.8]} 57... Kg2 {[%clk 0:00:15.5]} 0-1